fUSD/lending_fUSD_20260421
["ID","MTS","AMOUNT","RATE_DAILY","PERIOD"]
[420927623,1776736256392,-3299.67,0.00027397,2]
[420927624,1776736256401,-3316.11,0.00027397,2]
[420927625,1776736256411,-1472.09,0.00027397,2]
[420927626,1776736256420,-280.0,0.00027397,2]
[420927627,1776736256430,-500.0,0.00027397,2]
[420927628,1776736256439,-5024.32,0.00027397,2]
[420927629,1776736256449,-280.02605396,0.00027397,2]
[420927630,1776736256459,-3253.0,0.00027397,2]
[420927631,1776736256468,-2594.21,0.00027397,2]
[420927632,1776736256477,-500.0,0.00027397,2]
[420927633,1776736256487,-500.0,0.00027397,2]
[420927634,1776736256496,-5709.16,0.00027397,2]
[420927635,1776736256506,-2157.41,0.00027397,2]
[420927636,1776736256515,-3543.38,0.00027397,2]
[420927637,1776736256525,-1289.06,0.00027397,2]
[420927638,1776736256534,-500.0,0.00027397,2]
[420927639,1776736256543,-500.0,0.00027397,2]
[420927640,1776736256553,-500.0,0.00027397,2]
[420927641,1776736256562,-1628.51,0.00027397,2]
[420927642,1776736256572,-1196.59,0.00027397,2]
[420927643,1776736256581,-3546.1,0.00027397,2]
[420927644,1776736256591,-737.2,0.00027397,2]
[420927645,1776736256600,-576.64,0.00027397,2]
[420927646,1776736256610,-500.0,0.00027397,2]
[420927647,1776736256619,-500.0,0.00027397,2]
[420927648,1776736256629,-574.71,0.00027397,2]
[420927649,1776736256638,-500.0,0.00027397,2]
[420927650,1776736256647,-5005.16,0.00027397,2]
[420927651,1776736256657,-500.0,0.00027397,2]
[420927652,1776736256666,-1031.98,0.00027397,2]
[420927653,1776736256676,-500.0,0.00027397,2]
[420927654,1776736256685,-1870.48,0.00027397,2]
[420927655,1776736256695,-1996.48,0.00027397,2]
[420927656,1776736256704,-500.0,0.00027397,2]
[420927657,1776736256714,-593.24,0.00027397,2]
[420927658,1776736256724,-500.0,0.00027397,2]
[420927659,1776736256733,-500.0,0.00027397,2]
[420927660,1776736256743,-500.0,0.00027397,2]
[420927661,1776736256752,-500.0,0.00027397,2]
[420927662,1776736256761,-595.17,0.00027397,2]
[420927663,1776736256770,-500.0,0.00027397,2]
[420927664,1776736256780,-2242.0,0.00027397,2]
[420927665,1776736256789,-500.0,0.00027397,2]
[420927666,1776736256798,-1515.48,0.00027397,2]
[420927667,1776736256808,-500.0,0.00027397,2]
[420927668,1776736256817,-1082.03,0.00027397,2]
[420927669,1776736256826,-500.0,0.00027397,2]
[420927670,1776736256835,-550.58,0.00027397,2]
[420927671,1776736256845,-5697.89,0.00027397,2]
[420927672,1776736256855,-732.01,0.00027397,2]
[420927673,1776736256864,-624.86,0.00027397,2]
[420927674,1776736256873,-3329.09,0.00027397,2]
[420927675,1776736256883,-9904.39,0.00027397,2]
[420927676,1776736256892,-4551.52,0.00027397,2]
[420927677,1776736256902,-2688.87,0.00027397,2]
[420927678,1776736256911,-398.78044674,0.00027397,2]
[420927679,1776736256920,-1060.17,0.00027397,2]
[420927680,1776736256929,-500.0,0.00027397,2]
[420927681,1776736256939,-500.0,0.00027397,2]
[420927682,1776736256948,-500.0,0.00027397,2]
[420927683,1776736256957,-500.0,0.00027397,2]
[420927684,1776736256967,-500.0,0.00027397,2]
[420927685,1776736256976,-500.0,0.00027397,2]
[420927686,1776736256985,-1623.6,0.00027397,2]
[420927687,1776736256995,-3337.02,0.00027397,2]
[420927688,1776736257004,-500.0,0.00027397,2]
[420927689,1776736257014,-500.0,0.00027397,2]
[420927690,1776736257023,-1929.22,0.00027397,2]
[420927691,1776736257032,-733.92,0.00027397,2]
[420927692,1776736257042,-4525.1,0.00027397,2]
[420927693,1776736257051,-500.0,0.00027397,2]
[420927694,1776736257061,-500.0,0.00027397,2]
[420927695,1776736257070,-722.66,0.00027397,2]
[420927696,1776736257079,-634.75,0.00027397,2]
[420927697,1776736257088,-631.13,0.00027397,2]
[420927698,1776736257098,-5949.72,0.00027397,2]
[420927699,1776736257107,-3579.05,0.00027397,2]
[420927700,1776736257117,-500.0,0.00027397,2]
[420927701,1776736257126,-2590.32,0.00027397,2]
[420927702,1776736257135,-500.0,0.00027397,2]
[420927703,1776736257145,-1258.25,0.00027397,2]
[420927704,1776736257155,-1734.94,0.00027397,2]
[420927705,1776736257164,-500.0,0.00027397,2]
[420927706,1776736257174,-3592.8,0.00027397,2]
[420927707,1776736257183,-500.0,0.00027397,2]
[420927708,1776736257193,-3183.81,0.00027397,2]
[420927709,1776736257202,-500.0,0.00027397,2]
[420927710,1776736257211,-709.82,0.00027397,2]
[420927711,1776736257220,-500.0,0.00027397,2]
[420927712,1776736257229,-500.0,0.00027397,2]
[420927713,1776736257238,-6817.49,0.00027397,2]
[420927714,1776736257247,-500.0,0.00027397,2]
[420927715,1776736257256,-1864.96,0.00027397,2]
[420927716,1776736257266,-995.03,0.00027397,2]
[420927717,1776736257275,-3417.11,0.00027397,2]
[420927718,1776736257284,-4166.66,0.00027397,2]
[420927719,1776736257294,-500.0,0.00027397,2]
[420927720,1776736257303,-500.0,0.00027397,2]
[420927721,1776736257313,-5535.27,0.00027397,2]
[420927722,1776736257322,-500.0,0.00027397,2]
[420927723,1776736257331,-500.0,0.00027397,2]
[420927724,1776736257341,-8298.31,0.00027397,2]
[420927725,1776736257350,-1904.54,0.00027397,2]
[420927726,1776736257360,-602.79,0.00027397,2]
[420927727,1776736257370,-500.0,0.00027397,2]
[420927728,1776736257379,-500.0,0.00027397,2]
[420927729,1776736257388,-1145.11,0.00027397,2]
[420927730,1776736257398,-1076.2,0.00027397,2]
[420927731,1776736257407,-1266.17,0.00027397,2]
[420927732,1776736257416,-3530.06,0.00027397,2]
[420927733,1776736257426,-432.11408843,0.00027397,2]
[420927734,1776736257435,-741.23,0.00027397,2]
[420927735,1776736257445,-909.32,0.00027397,2]
[420927736,1776736257454,-500.0,0.00027397,2]
[420927737,1776736257464,-500.0,0.00027397,2]
[420927738,1776736257475,-500.0,0.00027397,2]
[420927739,1776736257484,-910.58,0.00027397,2]
[420927740,1776736257495,-500.0,0.00027397,2]
[420927741,1776736257505,-1285.26,0.00027397,2]
[420927742,1776736257515,-586.68,0.00027397,2]
[420927743,1776736257524,-2278.26,0.00027397,2]
[420927744,1776736257534,-500.0,0.00027397,2]
[420927745,1776736257545,-3666.59,0.00027397,2]
[420927746,1776736257555,-1748.34,0.00027397,2]
[420927747,1776736257566,-500.0,0.00027397,2]
[420927748,1776736257576,-500.0,0.00027397,2]
[420927749,1776736257586,-500.0,0.00027397,2]
[420927750,1776736257597,-5211.25,0.00027397,2]
[420927751,1776736257607,-1201.02,0.00027397,2]
[420927752,1776736257617,-4026.44,0.00027397,2]
[420927753,1776736257627,-3362.37,0.00027397,2]
[420927754,1776736257638,-2604.05,0.00027397,2]
[420927755,1776736257649,-500.0,0.00027397,2]
[420927756,1776736257659,-1648.6,0.00027397,2]
[420927757,1776736257669,-665.01,0.00027397,2]
[420927758,1776736257680,-500.0,0.00027397,2]
[420927759,1776736257690,-6442.86,0.00027397,2]
[420927760,1776736257700,-2251.73,0.00027397,2]
[420927761,1776736257710,-938.26,0.00027397,2]
[420927762,1776736257721,-2921.21,0.00027397,2]
[420927763,1776736257732,-500.0,0.00027397,2]
[420927764,1776736257743,-1970.16,0.00027397,2]
[420927765,1776736257753,-500.0,0.00027397,2]
[420927766,1776736257764,-2666.14,0.00027397,2]
[420927767,1776736257775,-500.0,0.00027397,2]
[420927768,1776736257785,-500.0,0.00027397,2]
[420927769,1776736257796,-2064.64,0.00027397,2]
[420927770,1776736257806,-619.57,0.00027397,2]
[420927771,1776736257817,-500.0,0.00027397,2]
[420927772,1776736257829,-893.21,0.00027397,2]
[420927773,1776736257839,-690.36,0.00027397,2]
[420927774,1776736257850,-500.0,0.00027397,2]
[420927775,1776736257860,-500.0,0.00027397,2]
[420927776,1776736257871,-500.0,0.00027397,2]
[420927777,1776736257881,-500.0,0.00027397,2]
[420927778,1776736257892,-538.97,0.00027397,2]
[420927779,1776736257903,-838.07,0.00027397,2]
[420927780,1776736257916,-1113.85,0.00027397,2]
[420927781,1776736257927,-8964.82,0.00027397,2]
[420927782,1776736257937,-1159.1,0.00027397,2]
[420927783,1776736257948,-3286.54,0.00027397,2]
[420927784,1776736257959,-1255.12,0.00027397,2]
[420927785,1776736257969,-5040.46,0.00027397,2]
[420927786,1776736257979,-4732.44,0.00027397,2]
[420927787,1776736257990,-1466.62,0.00027397,2]
[420927788,1776736258000,-667.78,0.00027397,2]
[420927789,1776736258011,-3329.13,0.00027397,2]
[420927790,1776736258021,-1665.61,0.00027397,2]
[420927791,1776736258031,-572.03,0.00027397,2]
[420927792,1776736258042,-500.0,0.00027397,2]
[420927793,1776736258052,-1800.59,0.00027397,2]
[420927794,1776736258063,-708.95,0.00027397,2]
[420927795,1776736258073,-500.0,0.00027397,2]
[420927796,1776736258084,-14672.87,0.00027397,2]
[420927797,1776736258095,-500.0,0.00027397,2]
[420927798,1776736258105,-1166.22,0.00027397,2]
[420927799,1776736258115,-500.0,0.00027397,2]
[420927800,1776736258126,-500.0,0.00027397,2]
[420927801,1776736258136,-7610.1,0.00027397,2]
[420927802,1776736258147,-500.0,0.00027397,2]
[420927803,1776736258158,-500.0,0.00027397,2]
[420927804,1776736258169,-500.0,0.00027397,2]
[420927805,1776736258179,-1234.31,0.00027397,2]
[420927806,1776736258190,-500.0,0.00027397,2]
[420927807,1776736258200,-4797.55,0.00027397,2]
[420927808,1776736258211,-500.0,0.00027397,2]
[420927809,1776736258222,-2924.44,0.00027397,2]
[420927810,1776736258233,-2055.37,0.00027397,2]
[420927811,1776736258244,-1475.95,0.00027397,2]
[420927812,1776736258256,-500.0,0.00027397,2]
[420927813,1776736258267,-500.0,0.00027397,2]
[420927814,1776736258277,-2086.61,0.00027397,2]
[420927815,1776736258288,-669.14,0.00027397,2]
[420927816,1776736258298,-3577.85,0.00027397,2]
[420927817,1776736258309,-4829.03,0.00027397,2]
[420927818,1776736258319,-500.0,0.00027397,2]
[420927819,1776736258330,-9119.47,0.00027397,2]
[420927820,1776736258341,-860.27,0.00027397,2]
[420927821,1776736258351,-500.0,0.00027397,2]
[420927822,1776736258362,-8377.71,0.00027397,2]
[420927823,1776736258372,-500.0,0.00027397,2]
[420927824,1776736258383,-500.0,0.00027397,2]
[420927825,1776736258393,-976.58,0.00027397,2]
[420927826,1776736258404,-724.12,0.00027397,2]
[420927827,1776736258415,-500.0,0.00027397,2]
[420927828,1776736258426,-500.0,0.00027397,2]
[420927829,1776736258436,-1045.78,0.00027397,2]
[420927830,1776736258447,-500.0,0.00027397,2]
[420927831,1776736258458,-6627.68,0.00027397,2]
[420927832,1776736258468,-500.0,0.00027397,2]
[420927833,1776736258478,-679.29,0.00027397,2]
[420927834,1776736258489,-500.0,0.00027397,2]
[420927835,1776736258499,-3466.76,0.00027397,2]
[420927836,1776736258510,-3081.39,0.00027397,2]
[420927837,1776736258521,-500.0,0.00027397,2]
[420927838,1776736258531,-500.0,0.00027397,2]
[420927839,1776736258542,-500.0,0.00027397,2]
[420927840,1776736258553,-500.0,0.00027397,2]
[420927841,1776736258564,-500.0,0.00027397,2]
[420927842,1776736258575,-2314.96,0.00027397,2]
[420927843,1776736258585,-3106.68,0.00027397,2]
[420927844,1776736258595,-1056.61,0.00027397,2]
[420927845,1776736258606,-921.01,0.00027397,2]
[420927846,1776736258624,-6739.24,0.00027397,2]
[420927847,1776736258640,-497.88133864,0.00027397,2]
[420927848,1776736258654,-7401.88,0.00027397,2]
[420927849,1776736258666,-4574.15,0.00027397,2]
[420927850,1776736258681,-1381.88,0.00027397,2]
[420927851,1776736258695,-500.0,0.00027397,2]
[420927852,1776736258710,-500.0,0.00027397,2]
[420927853,1776736258725,-2372.19,0.00027397,2]
[420927854,1776736258739,-500.0,0.00027397,2]
[420927855,1776736258752,-500.0,0.00027397,2]
[420927856,1776736258767,-2972.67,0.00027397,2]
[420927857,1776736258781,-500.0,0.00027397,2]
[420927858,1776736258794,-500.0,0.00027397,2]
[420927859,1776736258807,-1265.4,0.00027397,2]
[420927860,1776736258820,-500.0,0.00027397,2]
[420927861,1776736258830,-500.0,0.00027397,2]
[420927862,1776736258844,-500.0,0.00027397,2]
[420927863,1776736258858,-2659.92,0.00027397,2]
[420927864,1776736258872,-6816.93,0.00027397,2]
[420927865,1776736258886,-1979.82,0.00027397,2]
[420927866,1776736258900,-500.0,0.00027397,2]
[420927867,1776736258915,-3255.58,0.00027397,2]
[420927868,1776736258930,-688.1,0.00027397,2]
[420927869,1776736258943,-1714.64,0.00027397,2]
[420927870,1776736258954,-5529.57,0.00027397,2]
[420927871,1776736258965,-1967.32,0.00027397,2]
[420927872,1776736258980,-1227.27,0.00027397,2]
[420927873,1776736258992,-500.0,0.00027397,2]
[420927874,1776736259005,-500.0,0.00027397,2]
[420927875,1776736259020,-500.0,0.00027397,2]
[420927876,1776736259033,-948.17,0.00027397,2]
[420927877,1776736259047,-500.0,0.00027397,2]
[420927878,1776736259060,-753.62,0.00027397,2]
[420927879,1776736259072,-1877.31,0.00027397,2]
[420927880,1776736259087,-500.0,0.00027397,2]
[420927881,1776736259101,-500.0,0.00027397,2]
[420927882,1776736259114,-500.0,0.00027397,2]
[420927883,1776736259127,-786.11,0.00027397,2]
[420927884,1776736259139,-730.1,0.00027397,2]
[420927885,1776736259151,-2300.77,0.00027397,2]
[420927886,1776736259163,-500.0,0.00027397,2]
[420927887,1776736259175,-6304.13,0.00027397,2]
[420927888,1776736259188,-1340.22,0.00027397,2]
[420927889,1776736259199,-3317.4,0.00027397,2]
[420927890,1776736259211,-238.9863096,0.00027397,2]
[420927891,1776736259223,-852.82,0.00027397,2]
[420927892,1776736259235,-4003.09,0.00027397,2]
[420927893,1776736259247,-1649.4,0.00027397,2]
[420927894,1776736259259,-500.0,0.00027397,2]
[420927895,1776736259272,-2144.11,0.00027397,2]
[420927896,1776736259285,-500.0,0.00027397,2]
[420927897,1776736259297,-538.62,0.00027397,2]
[420927898,1776736259310,-971.67,0.00027397,2]
[420927899,1776736259322,-500.0,0.00027397,2]
[420927900,1776736259334,-500.0,0.00027397,2]
[420927901,1776736259346,-500.0,0.00027397,2]
[420927902,1776736259358,-2438.79,0.00027397,2]
[420927903,1776736259369,-836.93,0.00027397,2]
[420927904,1776736259382,-500.0,0.00027397,2]
[420927905,1776736259395,-500.0,0.00027397,2]
[420927906,1776736259407,-500.0,0.00027397,2]
[420927907,1776736259421,-1605.14,0.00027397,2]
[420927908,1776736259433,-500.0,0.00027397,2]
[420927909,1776736259445,-1513.96,0.00027397,2]
[420927910,1776736259458,-1156.6,0.00027397,2]
[420927911,1776736259470,-4272.19,0.00027397,2]
[420927912,1776736259482,-500.0,0.00027397,2]
[420927913,1776736259495,-500.0,0.00027397,2]
[420927914,1776736259507,-1116.69,0.00027397,2]
[420927915,1776736259520,-788.52,0.00027397,2]
[420927916,1776736259550,-1553.75,0.00027397,2]
[420927917,1776736259562,-820.38,0.00027397,2]
[420927918,1776736259575,-500.0,0.00027397,2]
[420927919,1776736259587,-500.0,0.00027397,2]
[420927920,1776736259599,-2002.33,0.00027397,2]
[420927921,1776736259611,-1966.96,0.00027397,2]
[420927922,1776736259623,-500.0,0.00027397,2]
[420927923,1776736259635,-500.0,0.00027397,2]
[420927924,1776736259648,-705.59,0.00027397,2]
[420927925,1776736259660,-992.27,0.00027397,2]
[420927926,1776736259674,-500.0,0.00027397,2]
[420927927,1776736259686,-500.0,0.00027397,2]
[420927928,1776736259698,-567.15,0.00027397,2]
[420927929,1776736259711,-500.0,0.00027397,2]
[420927930,1776736259724,-500.0,0.00027397,2]
[420927931,1776736259737,-1329.23,0.00027397,2]
[420927932,1776736259750,-500.0,0.00027397,2]
[420927933,1776736259763,-1798.64,0.00027397,2]
[420927934,1776736259775,-2136.69,0.00027397,2]
[420927935,1776736259787,-500.0,0.00027397,2]
[420927936,1776736259800,-591.87226149,0.00027397,2]
[420927937,1776736259812,-6465.04,0.00027397,2]
[420927938,1776736259824,-211.83604736,0.00027397,2]
[420927939,1776736259837,-500.0,0.00027397,2]
[420927940,1776736259849,-500.0,0.00027397,2]
[420927941,1776736259862,-1041.17,0.00027397,2]
[420927942,1776736259875,-1889.5,0.00027397,2]
[420927943,1776736259887,-1666.53,0.00027397,2]
[420927944,1776736259900,-500.0,0.00027397,2]
[420927945,1776736259912,-810.98,0.00027397,2]
[420927946,1776736259925,-633.7,0.00027397,2]
[420927947,1776736259938,-500.0,0.00027397,2]
[420927948,1776736259951,-636.26,0.00027397,2]
[420927949,1776736259964,-500.0,0.00027397,2]
[420927950,1776736259977,-500.0,0.00027397,2]
[420927951,1776736259989,-500.0,0.00027397,2]
[420927952,1776736260001,-5525.02,0.00027397,2]
[420927953,1776736260013,-500.0,0.00027397,2]
[420927954,1776736260027,-541.12,0.00027397,2]
[420927955,1776736260039,-468.01378839,0.00027397,2]
[420927956,1776736260052,-3876.89,0.00027397,2]
[420927957,1776736260064,-1451.34,0.00027397,2]
[420927958,1776736260076,-500.0,0.00027397,2]
[420927959,1776736260089,-8265.57,0.00027397,2]
[420927960,1776736260100,-10199.47,0.00027397,2]
[420927961,1776736260113,-500.0,0.00027397,2]
[420927962,1776736260125,-1003.82,0.00027397,2]
[420927963,1776736260137,-2972.74,0.00027397,2]
[420927964,1776736260150,-500.0,0.00027397,2]
[420927965,1776736260162,-2191.66,0.00027397,2]
[420927966,1776736260174,-500.0,0.00027397,2]
[420927967,1776736260187,-1453.31,0.00027397,2]
[420927968,1776736260199,-500.0,0.00027397,2]
[420927969,1776736260215,-1633.86,0.00027397,2]
[420927970,1776736260228,-500.0,0.00027397,2]
[420927971,1776736260241,-1172.2,0.00027397,2]
[420927972,1776736260253,-1630.59,0.00027397,2]
[420927973,1776736260265,-544.39,0.00027397,2]
[420927974,1776736260278,-500.0,0.00027397,2]
[420927975,1776736260290,-500.0,0.00027397,2]
[420927976,1776736260303,-1078.92,0.00027397,2]
[420927977,1776736260315,-562.21,0.00027397,2]
[420927978,1776736260328,-500.0,0.00027397,2]
[420927979,1776736260340,-1184.56,0.00027397,2]
[420927980,1776736260353,-500.0,0.00027397,2]
[420927981,1776736260365,-500.0,0.00027397,2]
[420927982,1776736260377,-500.0,0.00027397,2]
[420927983,1776736260389,-2012.32,0.00027397,2]
[420927984,1776736260400,-2379.02,0.00027397,2]
[420927985,1776736260412,-1478.18,0.00027397,2]
[420927986,1776736260426,-3416.97,0.00027397,2]
[420927987,1776736260438,-1827.92,0.00027397,2]
[420927988,1776736260450,-500.0,0.00027397,2]
[420927989,1776736260462,-500.0,0.00027397,2]
[420927990,1776736260474,-2706.32,0.00027397,2]
[420927991,1776736260485,-950.28,0.00027397,2]
[420927992,1776736260497,-500.0,0.00027397,2]
[420927993,1776736260509,-546.35,0.00027397,2]
[420927994,1776736260520,-500.0,0.00027397,2]
[420927995,1776736260533,-690.02,0.00027397,2]
[420927996,1776736260545,-2746.6,0.00027397,2]
[420927997,1776736260557,-500.0,0.00027397,2]
[420927998,1776736260569,-4850.19,0.00027397,2]
[420927999,1776736260581,-1394.87,0.00027397,2]
[420928000,1776736260593,-1339.36,0.00027397,2]
[420928001,1776736260605,-500.0,0.00027397,2]
[420928002,1776736260617,-500.0,0.00027397,2]
[420928003,1776736260628,-2429.91,0.00027397,2]
[420928004,1776736260641,-500.0,0.00027397,2]
[420928005,1776736260652,-500.0,0.00027397,2]
[420928006,1776736260665,-500.0,0.00027397,2]
[420928007,1776736260677,-1076.61,0.00027397,2]
[420928008,1776736260689,-519.35,0.00027397,2]
[420928009,1776736260701,-500.0,0.00027397,2]
[420928010,1776736260713,-500.0,0.00027397,2]
[420928011,1776736260725,-500.0,0.00027397,2]
[420928012,1776736260737,-18935.63,0.00027397,2]
[420928013,1776736260748,-500.0,0.00027397,2]
[420928014,1776736260760,-1473.16,0.00027397,2]
[420928015,1776736260772,-2694.86,0.00027397,2]
[420928016,1776736260784,-500.0,0.00027397,2]
[420928017,1776736260795,-500.0,0.00027397,2]
[420928018,1776736260807,-1716.86,0.00027397,2]
[420928019,1776736260819,-2266.24,0.00027397,2]
[420928020,1776736260831,-201.3281642,0.00027397,2]
[420928021,1776736260842,-500.0,0.00027397,2]
[420928022,1776736260853,-2472.95,0.00027397,2]
[420928023,1776736260865,-1834.84,0.00027397,2]
[420928024,1776736260876,-2474.81,0.00027397,2]
[420928025,1776736260887,-500.0,0.00027397,2]
[420928026,1776736260898,-500.0,0.00027397,2]
[420928027,1776736260909,-500.0,0.00027397,2]
[420928028,1776736260921,-1038.2,0.00027397,2]
[420928029,1776736260932,-500.0,0.00027397,2]
[420928030,1776736260944,-1756.87,0.00027397,2]
[420928031,1776736260955,-1302.68,0.00027397,2]
[420928032,1776736260966,-500.0,0.00027397,2]
[420928033,1776736260977,-500.0,0.00027397,2]
[420928034,1776736260988,-500.0,0.00027397,2]
[420928035,1776736261000,-500.0,0.00027397,2]
[420928036,1776736261010,-3306.25,0.00027397,2]
[420928037,1776736261020,-879.22,0.00027397,2]
[420928038,1776736261031,-500.0,0.00027397,2]
[420928039,1776736261042,-2670.85,0.00027397,2]
[420928040,1776736261053,-500.0,0.00027397,2]
[420928041,1776736261065,-6286.88,0.00027397,2]
[420928042,1776736261076,-5920.11,0.00027397,2]
[420928043,1776736261087,-500.0,0.00027397,2]
[420928044,1776736261099,-500.0,0.00027397,2]
[420928045,1776736261109,-1850.42,0.00027397,2]
[420928046,1776736261120,-500.0,0.00027397,2]
[420928047,1776736261132,-516.59200063,0.00027397,2]
[420928048,1776736261143,-1180.28,0.00027397,2]
[420928049,1776736261154,-680.89,0.00027397,2]
[420928050,1776736261165,-573.9,0.00027397,2]
[420928051,1776736261176,-500.0,0.00027397,2]
[420928052,1776736261187,-1515.4,0.00027397,2]
[420928053,1776736261198,-766.8,0.00027397,2]
[420928054,1776736261212,-3002.0,0.00027397,2]
[420928055,1776736261223,-500.0,0.00027397,2]
[420928056,1776736261234,-500.0,0.00027397,2]
[420928057,1776736261245,-500.0,0.00027397,2]
[420928058,1776736261256,-2708.38,0.00027397,2]
[420928059,1776736261267,-3212.56,0.00027397,2]
[420928060,1776736261278,-500.0,0.00027397,2]
[420928061,1776736261290,-500.0,0.00027397,2]
[420928062,1776736261301,-2902.71,0.00027397,2]
[420928063,1776736261312,-855.61,0.00027397,2]
[420928064,1776736261323,-887.87,0.00027397,2]
[420928065,1776736261334,-516.62,0.00027397,2]
[420928066,1776736261346,-911.68,0.00027397,2]
[420928067,1776736261358,-500.0,0.00027397,2]
[420928068,1776736261368,-500.0,0.00027397,2]
[420928069,1776736261379,-1780.01,0.00027397,2]
[420928070,1776736261390,-4332.59,0.00027397,2]
[420928071,1776736261401,-693.22,0.00027397,2]
[420928072,1776736261412,-500.0,0.00027397,2]
[420928073,1776736261423,-527.52,0.00027397,2]
[420928074,1776736261435,-500.0,0.00027397,2]
[420928075,1776736261446,-500.0,0.00027397,2]
[420928076,1776736261457,-500.0,0.00027397,2]
[420928077,1776736261468,-1151.65,0.00027397,2]
[420928078,1776736261479,-500.0,0.00027397,2]
[420928079,1776736261491,-1876.22,0.00027397,2]
[420928080,1776736261502,-2511.19,0.00027397,2]
[420928081,1776736261514,-2079.95,0.00027397,2]
[420928082,1776736261526,-500.0,0.00027397,2]
[420928083,1776736261537,-500.0,0.00027397,2]
[420928084,1776736261549,-1955.49,0.00027397,2]
[420928085,1776736261561,-2570.56,0.00027397,2]
[420928086,1776736261572,-2585.06,0.00027397,2]
[420928087,1776736261582,-500.0,0.00027397,2]
[420928088,1776736261594,-1435.76,0.00027397,2]
[420928089,1776736261605,-500.0,0.00027397,2]
[420928090,1776736261616,-7569.8,0.00027397,2]
[420928091,1776736261628,-1511.21,0.00027397,2]
[420928092,1776736261639,-500.0,0.00027397,2]
[420928093,1776736261651,-500.0,0.00027397,2]
[420928094,1776736261663,-500.0,0.00027397,2]
[420928095,1776736261675,-500.0,0.00027397,2]
[420928096,1776736261687,-1270.12,0.00027397,2]
[420928097,1776736263292,-945.5,0.00027397,2]
[420928098,1776736263341,-2358.74,0.00027397,2]
[420928099,1776736263362,-558.61,0.00027397,2]
[420928100,1776736263391,-500.0,0.00027397,2]
[420928101,1776736263407,-500.0,0.00027397,2]
[420928102,1776736263416,-500.0,0.00027397,2]
[420928103,1776736263426,-523.27860644,0.00027397,2]
[420928104,1776736263435,-500.0,0.00027397,2]
[420928105,1776736263444,-5267.2,0.00027397,2]
[420928106,1776736263453,-938.35,0.00027397,2]
[420928107,1776736263462,-984.49,0.00027397,2]
[420928108,1776736263471,-500.0,0.00027397,2]
[420928109,1776736263481,-500.0,0.00027397,2]
[420928110,1776736263490,-500.0,0.00027397,2]
[420928111,1776736263500,-710.55,0.00027397,2]
[420928112,1776736263509,-1224.07,0.00027397,2]
[420928113,1776736263518,-2204.5,0.00027397,2]
[420928114,1776736263527,-604.78234787,0.00027397,2]
[420928115,1776736263536,-1362.13,0.00027397,2]
[420928116,1776736263545,-1976.08,0.00027397,2]
[420928117,1776736263555,-500.0,0.00027397,2]
[420928118,1776736263565,-500.0,0.00027397,2]
[420928119,1776736263574,-500.0,0.00027397,2]
[420928120,1776736263583,-500.0,0.00027397,2]
[420928121,1776736263593,-1410.2,0.00027397,2]
[420928122,1776736263602,-11016.08,0.00027397,2]